fUSD/lending_fUSD_20260115
["ID","MTS","AMOUNT","RATE_DAILY","PERIOD"]
[402070990,1768507842811,-4823.0,0.00032251,2]
[402070991,1768507842820,-6556.0,0.00032251,2]
[402070992,1768507842830,-4682.86905411,0.0003228,30]
[402070993,1768507842840,-453.93858594,0.00032546,2]
[402070994,1768507842850,-191.15148527,0.000328,120]
[402070995,1768507842859,-500.0,0.00032876,30]
[402070996,1768507842869,-441.95808847,0.00032876,30]
[402070997,1768507842878,-162.380719,0.00032877,2]
[402070998,1768507842887,-1595.9,0.00032877,120]
[402070999,1768507842897,-500.0,0.00032877,5]
[402071000,1768507842907,-150.0,0.00032877,2]
[402071001,1768507842922,-500.0,0.00032877,2]
[402071002,1768507842932,-150.0,0.00032932,2]
[402071003,1768507842942,-500.0,0.00032932,2]
[402071004,1768507842951,-282.21849629,0.00032987,2]
[402071005,1768507842960,-232.0434754,0.00032987,2]
[402071012,1768507843265,-506.0,0.00033011,8]
[402071013,1768507843327,-1000.0,0.00033425,5]
[402071014,1768507843337,-1442.5,0.00033511,5]
[402071015,1768507843346,-514.07814685,0.00033973,5]
[402071016,1768507843356,-3202.34217012,0.00034395,2]
[402071017,1768507843365,-11666.90035439,0.00034395,2]
[402071018,1768507843374,-150.0,0.00034416,2]
[402071019,1768507843384,-1331.0,0.00034492,2]
[402071020,1768507843392,-303.53470333,0.00034729,7]
[402071021,1768507843404,-1745.42298,0.000348,120]
[402071022,1768507843413,-150.0,0.00035012,2]
[402071023,1768507843422,-319.87072747,0.00035194,2]
[402071024,1768507843431,-150.0,0.00035205,2]
[402071025,1768507843440,-685.18,0.00035251,2]
[402071026,1768507843450,-5280.10347332,0.00035345,2]
[402071027,1768507843458,-150.0,0.0003538,2]
[402071028,1768507843468,-150.0,0.0003546,2]
[402071029,1768507843477,-150.0,0.00035466,2]
[402071030,1768507843487,-10000.0,0.00035489,2]
[402071031,1768507843496,-173.12624248,0.00035516,2]
[402071032,1768507843506,-860.10879208,0.00035516,2]
[402071033,1768507843517,-609.0,0.00035589,2]
[402071034,1768507843526,-24303.0,0.00035589,2]
[402071035,1768507843535,-151.0,0.00035613,14]
[402071036,1768507843545,-500.0,0.00035615,10]
[402071037,1768507843554,-408.98199245,0.00035615,10]
[402071038,1768507843564,-1000.0,0.00035616,2]
[402071039,1768507843575,-156.652895,0.00035616,10]
[402071040,1768507843584,-239.185561,0.00035616,10]
[402071041,1768507843594,-179.263514,0.00035616,10]
[402071042,1768507843604,-160.040885,0.00035616,10]
[402071043,1768507843614,-1000.0,0.00035616,2]
[402071044,1768507843623,-500.0,0.00035616,10]
[402071045,1768507843632,-462.04555475,0.00035616,10]
[402071046,1768507843641,-500.0,0.00035616,10]
[402071047,1768507843650,-500.0,0.00035616,10]
[402071048,1768507843659,-254.94880815,0.00035616,10]
[402071049,1768507843669,-500.0,0.00035616,10]
[402071050,1768507843678,-495.12656883,0.00035616,10]
[402071051,1768507843688,-439.69544667,0.00035616,10]
[402071052,1768507843698,-400.0,0.00035616,10]
[402071053,1768507843707,-500.0,0.00035616,10]
[402071054,1768507843717,-500.0,0.00035616,10]
[402071055,1768507843727,-500.0,0.00035616,10]
[402071056,1768507843736,-500.0,0.00035616,10]
[402071057,1768507843746,-500.0,0.00035616,10]
[402071058,1768507843755,-500.0,0.00035616,10]
[402071059,1768507843764,-436.41400499,0.00035616,10]
[402071060,1768507843774,-500.0,0.00035616,10]
[402071061,1768507843791,-405.43845754,0.00035616,10]
[402071062,1768507843804,-500.0,0.00035616,10]
[402071063,1768507843813,-764.69,0.00035616,10]
[402071064,1768507843823,-500.0,0.00035616,10]
[402071065,1768507843832,-500.0,0.00035616,10]
[402071066,1768507843842,-500.0,0.00035616,10]
[402071067,1768507843851,-564.83913271,0.00035616,10]
[402071068,1768507843861,-500.0,0.00035616,10]
[402071069,1768507843871,-500.0,0.00035616,10]
[402071070,1768507843881,-500.0,0.00035616,10]
[402071071,1768507843891,-500.0,0.00035616,10]
[402071072,1768507843900,-513.82094624,0.00035616,10]
[402071073,1768507843910,-500.0,0.00035616,10]
[402071074,1768507843919,-500.0,0.00035616,10]
[402071075,1768507843930,-777.71,0.00035616,10]
[402071076,1768507843940,-500.0,0.00035616,10]
[402071077,1768507843950,-510.35005117,0.00035616,10]
[402071078,1768507843959,-500.0,0.00035616,10]
[402071079,1768507843969,-500.0,0.00035616,10]
[402071080,1768507843978,-500.0,0.00035616,10]
[402071081,1768507843988,-500.0,0.00035616,10]
[402071082,1768507843998,-500.0,0.00035616,10]
[402071083,1768507844007,-204.94270215,0.00035616,10]
[402071084,1768507844017,-538.4,0.00035616,10]
[402071085,1768507844027,-500.0,0.00035616,10]
[402071086,1768507844037,-319.04143008,0.00035616,10]
[402071087,1768507844046,-489.64749692,0.00035616,10]
[402071088,1768507844057,-320.04962404,0.00035616,10]
[402071089,1768507844066,-500.0,0.00035616,10]
[402071090,1768507844079,-558.18553611,0.00035616,10]
[402071091,1768507844089,-516.29860768,0.00035616,10]
[402071092,1768507844100,-500.0,0.00035616,10]
[402071093,1768507844110,-500.0,0.00035616,10]
[402071094,1768507844121,-500.0,0.00035616,10]
[402071095,1768507844131,-539.71964427,0.00035616,10]
[402071096,1768507844141,-229.78995542,0.00035616,10]
[402071097,1768507844151,-215.0,0.00035616,10]
[402071098,1768507844161,-500.0,0.00035616,10]
[402071099,1768507844170,-500.0,0.00035616,10]
[402071100,1768507844181,-500.0,0.00035616,10]
[402071101,1768507844190,-162.38312941,0.00035616,10]
[402071102,1768507844200,-423.25776221,0.00035616,10]
[402071103,1768507844209,-500.0,0.00035616,10]
[402071104,1768507844219,-174.88550712,0.00035616,10]
[402071105,1768507844228,-500.0,0.00035616,10]
[402071106,1768507844238,-500.0,0.00035616,10]
[402071107,1768507844248,-500.0,0.00035616,10]
[402071108,1768507844257,-500.0,0.00035616,10]
[402071109,1768507844267,-317.64653468,0.00035616,10]
[402071110,1768507844276,-500.0,0.00035616,10]
[402071111,1768507844286,-500.0,0.00035616,10]
[402071112,1768507844296,-500.0,0.00035616,10]
[402071113,1768507844305,-507.13855067,0.00035616,10]
[402071114,1768507844315,-500.0,0.00035616,10]
[402071115,1768507844324,-1281.79,0.00035616,10]
[402071116,1768507844339,-500.0,0.00035616,10]
[402071117,1768507844349,-500.0,0.00035616,10]
[402071118,1768507844359,-500.0,0.00035616,10]
[402071119,1768507844371,-500.0,0.00035616,10]
[402071120,1768507844383,-500.0,0.00035616,10]
[402071121,1768507844392,-500.0,0.00035616,10]
[402071122,1768507844402,-500.0,0.00035616,10]
[402071123,1768507844413,-500.0,0.00035616,10]
[402071124,1768507844425,-500.0,0.00035616,10]
[402071125,1768507844435,-500.0,0.00035616,10]
[402071126,1768507844444,-430.27099267,0.00035616,10]
[402071127,1768507844455,-500.0,0.00035616,10]
[402071128,1768507844466,-500.0,0.00035616,10]
[402071129,1768507844476,-660.47,0.00035616,10]
[402071130,1768507844487,-500.0,0.00035616,10]
[402071131,1768507844498,-500.0,0.00035616,10]
[402071132,1768507844507,-236.44396484,0.00035616,10]
[402071133,1768507844517,-500.0,0.00035616,10]
[402071134,1768507844527,-315.16735808,0.00035616,10]
[402071135,1768507844536,-8365.65013622,0.00035616,10]
[402071136,1768507844548,-500.0,0.00035616,10]
[402071137,1768507844559,-500.0,0.00035616,10]
[402071138,1768507844568,-500.0,0.00035616,10]
[402071139,1768507844579,-721.53,0.00035616,10]
[402071140,1768507844590,-500.0,0.00035616,10]
[402071141,1768507844601,-637.25,0.00035616,10]
[402071142,1768507844610,-500.0,0.00035616,10]
[402071143,1768507844622,-738.73,0.00035616,10]
[402071144,1768507844633,-436.37165214,0.00035616,10]
[402071145,1768507844643,-695.78,0.00035616,10]
[402071146,1768507844653,-500.0,0.00035616,10]
[402071147,1768507844662,-500.0,0.00035616,10]
[402071148,1768507844672,-501.95909064,0.00035616,10]
[402071149,1768507844682,-514.11586589,0.00035616,10]
[402071150,1768507844691,-500.0,0.00035616,10]
[402071151,1768507844701,-500.0,0.00035616,10]
[402071152,1768507844710,-188.13136343,0.00035616,10]
[402071153,1768507844720,-691.57,0.00035616,10]
[402071154,1768507844730,-500.0,0.00035616,10]
[402071155,1768507844740,-500.0,0.00035616,10]
[402071156,1768507844750,-500.0,0.00035616,10]
[402071157,1768507844759,-778.97,0.00035616,10]
[402071158,1768507844769,-500.0,0.00035616,10]
[402071159,1768507844779,-500.0,0.00035616,10]
[402071160,1768507844789,-500.0,0.00035616,10]
[402071161,1768507844799,-693.09,0.00035616,10]
[402071162,1768507844809,-500.0,0.00035616,10]
[402071163,1768507844818,-500.0,0.00035616,2]
[402071164,1768507844828,-500.0,0.00035616,10]
[402071165,1768507844838,-867.05,0.00035616,10]
[402071166,1768507844847,-500.0,0.00035616,10]
[402071167,1768507844857,-500.0,0.00035616,10]
[402071168,1768507844867,-441.62250161,0.00035616,10]
[402071169,1768507844876,-500.0,0.00035616,10]
[402071170,1768507844886,-500.0,0.00035616,10]
[402071171,1768507844900,-500.0,0.00035616,10]
[402071172,1768507844911,-313.19998087,0.00035616,10]
[402071173,1768507844921,-500.0,0.00035616,10]
[402071174,1768507844932,-500.0,0.00035616,10]
[402071175,1768507844943,-500.0,0.00035616,10]
[402071176,1768507844952,-500.0,0.00035616,10]
[402071177,1768507844962,-374.27361908,0.00035616,10]
[402071178,1768507844972,-500.0,0.00035616,10]
[402071179,1768507844982,-500.0,0.00035616,10]
[402071180,1768507844992,-524.79476592,0.00035616,10]
[402071181,1768507845003,-304.84161417,0.00035616,10]
[402071182,1768507845013,-500.0,0.00035616,10]
[402071183,1768507845023,-465.38460601,0.00035616,10]
[402071184,1768507845033,-270.34918973,0.00035616,10]
[402071185,1768507845043,-500.0,0.00035616,10]
[402071186,1768507845053,-387.82346427,0.00035616,10]
[402071187,1768507845063,-500.0,0.00035616,7]
[402071188,1768507845075,-837.9,0.00035616,10]
[402071189,1768507845088,-500.0,0.00035616,10]
[402071190,1768507845098,-500.0,0.00035616,10]
[402071191,1768507845108,-500.0,0.00035616,10]
[402071192,1768507845119,-201.04782403,0.00035616,10]
[402071193,1768507845128,-500.0,0.00035616,10]
[402071194,1768507845138,-500.0,0.00035616,10]
[402071195,1768507845148,-417.34777652,0.00035616,10]
[402071196,1768507845159,-500.0,0.00035616,10]
[402071197,1768507845169,-836.19,0.00035616,10]
[402071198,1768507845180,-500.0,0.00035616,10]
[402071199,1768507845190,-500.0,0.00035616,10]
[402071200,1768507845200,-432.07023158,0.00035616,10]
[402071201,1768507845210,-500.0,0.00035616,10]
[402071202,1768507845220,-500.0,0.00035616,10]
[402071203,1768507845230,-500.0,0.00035616,10]
[402071204,1768507845239,-500.0,0.00035616,10]
[402071205,1768507845249,-500.0,0.00035616,10]
[402071206,1768507845259,-500.0,0.00035616,10]
[402071207,1768507845269,-500.0,0.00035616,10]
[402071208,1768507845279,-500.0,0.00035616,10]
[402071209,1768507845288,-365.10396075,0.00035616,10]
[402071210,1768507845298,-547.77833206,0.00035616,10]
[402071211,1768507845308,-500.0,0.00035616,10]
[402071212,1768507845318,-500.0,0.00035616,10]
[402071213,1768507845327,-500.0,0.00035616,10]
[402071214,1768507845339,-500.0,0.00035616,10]
[402071215,1768507845348,-500.0,0.00035616,10]
[402071216,1768507845359,-500.0,0.00035616,10]
[402071218,1768507845368,-500.0,0.00035616,10]
[402071220,1768507845378,-500.0,0.00035616,10]
[402071221,1768507845388,-500.0,0.00035616,10]
[402071222,1768507845398,-500.0,0.00035616,10]
[402071223,1768507845408,-500.0,0.00035616,10]
[402071224,1768507845418,-678.71,0.00035616,10]
[402071225,1768507845428,-505.61069417,0.00035616,10]
[402071226,1768507845438,-500.0,0.00035616,10]
[402071227,1768507845448,-500.0,0.00035616,10]
[402071228,1768507845458,-603.22,0.00035616,10]
[402071229,1768507845468,-381.42649336,0.00035616,10]
[402071230,1768507845478,-500.0,0.00035616,10]
[402071231,1768507845487,-500.0,0.00035616,10]
[402071232,1768507845498,-500.0,0.00035616,10]
[402071233,1768507845507,-500.0,0.00035616,10]
[402071234,1768507845517,-825.32,0.00035616,10]
[402071235,1768507845527,-500.0,0.00035616,10]
[402071236,1768507845537,-707.97,0.00035616,10]
[402071237,1768507845546,-500.0,0.00035616,10]
[402071238,1768507845556,-500.0,0.00035616,10]
[402071239,1768507845566,-500.0,0.00035616,10]
[402071240,1768507845576,-500.0,0.00035616,10]
[402071241,1768507845586,-500.0,0.00035616,10]
[402071242,1768507845595,-500.0,0.00035616,10]
[402071243,1768507845605,-790.45,0.00035616,10]
[402071244,1768507845615,-500.0,0.00035616,10]
[402071245,1768507845625,-500.0,0.00035616,10]
[402071246,1768507845634,-486.05163812,0.00035616,10]
[402071247,1768507845644,-500.0,0.00035616,10]
[402071248,1768507845653,-493.89604236,0.00035616,10]
[402071249,1768507845663,-383.87609685,0.00035616,10]
[402071250,1768507845673,-238.858399,0.00035616,10]
[402071251,1768507845683,-500.0,0.00035616,10]
[402071252,1768507845693,-500.0,0.00035616,10]
[402071253,1768507845704,-500.0,0.00035616,10]
[402071254,1768507845714,-360.96089705,0.00035616,10]
[402071255,1768507845723,-500.0,0.00035616,10]
[402071256,1768507845733,-557.01077836,0.00035616,10]
[402071257,1768507845742,-815.1,0.00035616,10]
[402071258,1768507845752,-500.0,0.00035616,10]
[402071259,1768507845761,-500.0,0.00035616,10]
[402071260,1768507845771,-519.91305416,0.00035616,10]
[402071261,1768507845781,-598.21,0.00035616,10]
[402071262,1768507845791,-575.51400176,0.00035616,10]
[402071263,1768507845801,-500.0,0.00035616,10]
[402071264,1768507845811,-500.0,0.00035616,10]
[402071265,1768507845820,-500.0,0.00035616,10]
[402071266,1768507845830,-500.0,0.00035616,10]
[402071267,1768507845840,-500.0,0.00035616,10]
[402071268,1768507845849,-500.0,0.00035616,10]
[402071269,1768507845859,-500.0,0.00035616,10]
[402071270,1768507845869,-500.0,0.00035616,10]
[402071271,1768507845879,-500.0,0.00035616,10]
[402071272,1768507845888,-500.0,0.00035616,10]
[402071273,1768507845897,-500.0,0.00035616,10]
[402071274,1768507845907,-500.0,0.00035616,10]
[402071275,1768507845917,-500.0,0.00035616,10]
[402071276,1768507845928,-500.0,0.00035616,10]
[402071277,1768507845938,-500.0,0.00035616,10]
[402071278,1768507845948,-552.81,0.00035616,10]
[402071279,1768507845958,-500.0,0.00035616,10]
[402071281,1768507845969,-500.0,0.00035616,10]
[402071282,1768507845979,-500.0,0.00035616,10]
[402071284,1768507845989,-164.0030524,0.00035616,10]
[402071285,1768507845999,-500.0,0.00035616,10]
[402071286,1768507846010,-784.17,0.00035616,10]
[402071287,1768507846021,-611.9,0.00035616,10]
[402071288,1768507846031,-500.0,0.00035616,10]
[402071289,1768507846040,-500.0,0.00035616,10]
[402071290,1768507846050,-500.0,0.00035616,10]
[402071291,1768507846060,-992.44,0.00035616,10]
[402071292,1768507846069,-500.0,0.00035616,10]
[402071293,1768507846081,-712.45,0.00035616,10]
[402071294,1768507846091,-500.0,0.00035616,10]
[402071295,1768507846100,-500.0,0.00035616,10]
[402071296,1768507846110,-500.0,0.00035616,10]
[402071297,1768507846121,-681.62,0.00035616,10]
[402071298,1768507846131,-500.0,0.00035616,10]
[402071299,1768507846141,-500.0,0.00035616,10]
[402071300,1768507846152,-500.0,0.00035616,10]
[402071301,1768507846161,-500.0,0.00035616,10]
[402071302,1768507846171,-505.26180171,0.00035616,10]
[402071303,1768507846181,-500.0,0.00035616,10]
[402071304,1768507846191,-500.0,0.00035616,10]
[402071305,1768507846200,-500.0,0.00035616,10]
[402071306,1768507846210,-500.0,0.00035616,10]
[402071307,1768507846219,-500.0,0.00035616,10]
[402071308,1768507846229,-500.0,0.00035616,10]
[402071309,1768507846239,-571.61,0.00035616,10]
[402071310,1768507846249,-940.35,0.00035616,10]
[402071311,1768507846259,-613.82,0.00035616,10]
[402071312,1768507846269,-179.58102831,0.00035616,10]
[402071313,1768507846278,-952.34,0.00035616,10]
[402071314,1768507846288,-769.6,0.00035616,10]
[402071315,1768507846298,-500.88589192,0.00035616,10]
[402071316,1768507846308,-1349.44,0.00035616,10]
[402071317,1768507846317,-500.0,0.00035616,10]
[402071318,1768507846327,-507.83,0.00035616,10]
[402071319,1768507846336,-847.91,0.00035616,10]
[402071320,1768507846346,-827.37,0.00035616,10]
[402071321,1768507846355,-500.0,0.00035616,10]
[402071322,1768507846364,-500.0,0.00035616,10]
[402071323,1768507846374,-699.14,0.00035616,10]
[402071324,1768507846384,-528.99,0.00035616,10]
[402071325,1768507846393,-500.0,0.00035616,10]
[402071326,1768507846402,-500.0,0.00035616,10]
[402071327,1768507846412,-500.0,0.00035616,10]
[402071328,1768507846421,-500.0,0.00035616,10]
[402071329,1768507846431,-500.0,0.00035616,10]
[402071330,1768507846441,-548.33,0.00035616,10]
[402071331,1768507846451,-500.0,0.00035616,10]
[402071332,1768507846460,-500.0,0.00035616,10]
[402071333,1768507846469,-500.0,0.00035616,10]
[402071334,1768507846478,-400.0,0.00035616,10]
[402071335,1768507846489,-1716.96,0.00035616,10]
[402071336,1768507846499,-289.59022809,0.00035616,10]
[402071337,1768507846509,-663.77,0.00035616,10]
[402071338,1768507846519,-500.0,0.00035616,10]
[402071339,1768507846529,-641.66,0.00035616,10]
[402071340,1768507846539,-500.0,0.00035616,10]
[402071341,1768507846548,-500.0,0.00035616,10]
[402071342,1768507846558,-500.0,0.00035616,10]
[402071343,1768507846567,-500.0,0.00035616,10]
[402071344,1768507846576,-500.0,0.00035616,10]
[402071345,1768507846586,-500.0,0.00035616,10]
[402071346,1768507846596,-500.0,0.00035616,10]
[402071347,1768507846606,-500.0,0.00035616,10]
[402071348,1768507846616,-500.0,0.00035616,10]
[402071349,1768507846627,-500.0,0.00035616,10]
[402071350,1768507846637,-709.1,0.00035616,10]
[402071351,1768507846647,-500.0,0.00035616,10]
[402071352,1768507846656,-500.0,0.00035616,10]
[402071353,1768507846665,-500.0,0.00035616,10]
[402071354,1768507846675,-500.0,0.00035616,10]
[402071355,1768507846685,-500.0,0.00035616,10]
[402071356,1768507846695,-500.0,0.00035616,10]
[402071357,1768507846704,-500.0,0.00035616,10]
[402071358,1768507846715,-500.0,0.00035616,10]
[402071359,1768507846724,-511.32,0.00035616,10]
[402071360,1768507846734,-500.0,0.00035616,10]
[402071361,1768507846743,-834.8,0.00035616,10]
[402071362,1768507846752,-500.0,0.00035616,10]
[402071363,1768507846762,-500.0,0.00035616,10]
[402071364,1768507846771,-500.0,0.00035616,10]
[402071365,1768507846781,-500.0,0.00035616,10]
[402071366,1768507846790,-1590.7,0.00035616,10]
[402071367,1768507846800,-500.0,0.00035616,10]
[402071368,1768507846809,-500.0,0.00035616,10]
[402071369,1768507846818,-500.0,0.00035616,10]
[402071370,1768507846828,-773.17,0.00035616,10]
[402071371,1768507846837,-273.38982951,0.00035616,10]
[402071372,1768507846847,-500.0,0.00035616,10]
[402071373,1768507846856,-473.83127415,0.00035616,10]
[402071374,1768507846865,-500.0,0.00035616,10]
[402071375,1768507846874,-500.0,0.00035616,10]
[402071376,1768507846884,-693.43,0.00035616,10]
[402071377,1768507846893,-500.0,0.00035616,10]
[402071378,1768507846903,-1099.92,0.00035616,10]
[402071379,1768507846912,-513.53478115,0.00035616,10]
[402071380,1768507846922,-500.0,0.00035616,10]
[402071381,1768507846932,-500.0,0.00035616,10]
[402071382,1768507846943,-500.0,0.00035616,10]
[402071383,1768507846952,-500.0,0.00035616,10]
[402071384,1768507846962,-500.0,0.00035616,10]
[402071385,1768507846971,-500.0,0.00035616,10]
[402071386,1768507846980,-500.0,0.00035616,10]
[402071387,1768507846989,-1290.63,0.00035616,10]
[402071388,1768507846998,-583.61497009,0.00035616,10]
[402071389,1768507847008,-688.01,0.00035616,10]
[402071390,1768507847017,-500.0,0.00035616,10]
[402071391,1768507847026,-507.2,0.00035616,10]
[402071392,1768507847036,-500.0,0.00035616,10]
[402071393,1768507847045,-500.0,0.00035616,10]
[402071394,1768507847054,-500.0,0.00035616,10]
[402071395,1768507847063,-500.0,0.00035616,10]
[402071396,1768507847073,-573.81,0.00035616,10]
[402071397,1768507847085,-552.53,0.00035616,10]
[402071398,1768507847094,-500.0,0.00035616,10]
[402071399,1768507847103,-625.95312799,0.00035616,10]
[402071400,1768507847112,-500.0,0.00035616,10]
[402071401,1768507847122,-500.0,0.00035616,10]
[402071402,1768507847131,-500.0,0.00035616,10]
[402071403,1768507847140,-751.87,0.00035616,10]
[402071404,1768507847149,-500.0,0.00035616,10]
[402071405,1768507847158,-500.0,0.00035616,10]
[402071406,1768507847168,-500.0,0.00035616,10]
[402071407,1768507847176,-698.74,0.00035616,10]
[402071408,1768507847186,-500.0,0.00035616,10]
[402071409,1768507847195,-375.68681891,0.00035616,10]
[402071410,1768507847204,-525.95773554,0.00035616,10]
[402071411,1768507847214,-500.0,0.00035616,10]
[402071412,1768507847223,-552.04244684,0.00035616,10]
[402071413,1768507847232,-500.0,0.00035616,10]
[402071414,1768507847242,-500.0,0.00035616,10]
[402071415,1768507847251,-500.0,0.00035616,10]
[402071416,1768507847261,-500.0,0.00035616,10]
[402071417,1768507847270,-571.0,0.00035616,10]
[402071418,1768507847279,-690.85,0.00035616,10]
[402071419,1768507847289,-500.0,0.00035616,10]
[402071420,1768507847300,-500.0,0.00035616,10]
[402071421,1768507847309,-500.0,0.00035616,10]
[402071422,1768507847319,-500.0,0.00035616,10]
[402071423,1768507847330,-500.0,0.00035616,10]
[402071424,1768507847340,-500.0,0.00035616,10]
[402071425,1768507847349,-500.0,0.00035616,10]
[402071426,1768507847359,-711.36,0.00035616,10]
[402071427,1768507847368,-500.0,0.00035616,10]
[402071428,1768507847377,-500.0,0.00035616,10]
[402071429,1768507847386,-500.0,0.00035616,10]
[402071430,1768507847397,-500.0,0.00035616,10]
[402071431,1768507847406,-500.0,0.00035616,10]
[402071432,1768507847707,-533.77,0.00035616,10]
[402071433,1768507847718,-712.7,0.00035616,10]
[402071434,1768507847727,-664.34,0.00035616,10]
[402071435,1768507847736,-500.0,0.00035616,10]
[402071436,1768507847745,-500.0,0.00035616,10]
[402071437,1768507847754,-500.0,0.00035616,10]
[402071438,1768507847764,-500.0,0.00035616,10]
[402071439,1768507847773,-723.74,0.00035616,10]
[402071440,1768507847783,-500.0,0.00035616,10]
[402071441,1768507847792,-500.0,0.00035616,10]
[402071442,1768507847802,-500.0,0.00035616,10]
[402071443,1768507847811,-500.0,0.00035616,10]
[402071444,1768507847822,-500.0,0.00035616,10]
[402071445,1768507847831,-500.0,0.00035616,10]
[402071446,1768507847840,-500.0,0.00035616,10]
[402071447,1768507847850,-944.72,0.00035616,10]
[402071448,1768507847860,-500.0,0.00035616,10]
[402071449,1768507847869,-500.0,0.00035616,10]
[402071450,1768507847878,-500.0,0.00035616,10]
[402071451,1768507847888,-500.0,0.00035616,10]
[402071452,1768507847897,-500.0,0.00035616,10]
[402071453,1768507847907,-500.0,0.00035616,10]
[402071454,1768507847917,-500.0,0.00035616,10]
[402071455,1768507847927,-500.0,0.00035616,10]
[402071456,1768507847937,-500.0,0.00035616,120]
[402071457,1768507847947,-500.0,0.00035616,10]
[402071458,1768507847956,-500.0,0.00035616,10]
[402071459,1768507847966,-855.13,0.00035616,10]
[402071460,1768507847975,-500.0,0.00035616,10]
[402071461,1768507847988,-500.0,0.00035616,10]
[402071462,1768507847998,-500.0,0.00035616,10]
[402071463,1768507848008,-500.0,0.00035616,10]
[402071464,1768507848018,-800.13,0.00035616,10]
[402071465,1768507848027,-897.08,0.00035616,10]
[402071466,1768507848037,-1051.57,0.00035616,10]
[402071467,1768507848048,-500.0,0.00035616,10]
[402071468,1768507848059,-500.0,0.00035616,10]
[402071469,1768507848068,-500.0,0.00035616,10]
[402071470,1768507848078,-500.0,0.00035616,10]
[402071471,1768507848090,-516.96903691,0.00035616,10]
[402071472,1768507848100,-500.0,0.00035616,10]
[402071473,1768507848110,-500.0,0.00035616,10]
[402071474,1768507848119,-500.0,0.00035616,10]
[402071475,1768507848131,-1446.28,0.00035616,10]
[402071476,1768507848140,-580.68,0.00035616,10]
[402071477,1768507848150,-564.05,0.00035616,10]
[402071478,1768507848163,-500.0,0.00035616,10]
[402071479,1768507848172,-759.00117964,0.00035616,120]
[402071480,1768507848182,-500.0,0.00035616,10]
[402071481,1768507848194,-500.0,0.00035616,10]
[402071482,1768507848204,-500.0,0.00035616,10]
[402071483,1768507848213,-500.0,0.00035616,10]
[402071484,1768507848223,-500.0,0.00035616,10]
[402071485,1768507848232,-500.0,0.00035616,10]
[402071486,1768507848241,-500.0,0.00035616,10]
[402071487,1768507848251,-500.0,0.00035616,10]
[402071488,1768507848260,-500.0,0.00035616,10]
[402071489,1768507848270,-609.7619569,0.00035616,10]
[402071490,1768507848279,-500.0,0.00035616,10]
[402071491,1768507848288,-500.0,0.00035616,10]
[402071492,1768507848298,-500.0,0.00035616,10]
[402071493,1768507848307,-500.0,0.00035616,10]
[402071494,1768507848317,-500.0,0.00035616,10]
[402071495,1768507848326,-500.0,0.00035616,10]
[402071496,1768507848336,-941.66,0.00035616,10]
[402071497,1768507848345,-500.0,0.00035616,10]
[402071498,1768507848355,-208.64241242,0.00035616,10]
[402071499,1768507848365,-500.0,0.00035616,10]